Workbook

Sheet Budget Worksheet
B2: IRIS Undergraduate Budget Worksheet | I2: Semester Finances Summary
B3: Step 1: Enter your name and semester information. | I3: Step 6: Check out your summary and next steps
B4: Name: | E4: Semester:
B5: =IF(F4=Data!K57, "Skip to next section:", "Credit Hours Completed in Fall 2026 (excluding grades of W, F, I):") -> Credit Hours Completed in Fall 2026 (excluding grades of W, F, I):
B6: What are my costs?
B7: Step 2: Enter your credit hours by type to calculate your tuition and fees
E8: Residency:
B9: Undergraduate Tuition Types | D9: Credit Hours | E9: Tuition Per Credit | F9: Fees Per Credit | G9: Total
B10: On Campus/Hybrid | E10: =_xlfn.IFS(D10=0,0,F8="","Select residency",Data!B3="Actual",VLOOKUP(F8,Data!B7:C15,2,FALSE), Data!B3="Estimated", VLOOKUP(F8,Data!B6:F15,5,FALSE)) -> 0 | F10: =_xlfn.IFS(D10=0,0,Data!B3="Estimated", Data!F13, Data!B3="Actual",Data!C13) -> 0 | G10: =D10*(E10+F10) -> 0
B11: Career & Technical Education (CTE) | E11: =_xlfn.IFS(D11="",0,F8="","Select residency",AND(F8="In-State", Data!B3="Estimated"), VLOOKUP(B11,Data!B6:F15,5,FALSE),AND(F8="In-State", Data!B3="Actual"), VLOOKUP(B11,Data!B6:F15,2,FALSE), AND(F8<>"In-State",Data!B3="Estimated"), VLOOKUP(F8,Data!B6:F15,5,FALSE),AND(F8<>"In-State", Data!B3="Actual"), VLOOKUP(F8,Data!B6:F15,2,FALSE)) -> 0 | F11: =_xlfn.IFS(D11=0,0,Data!B3="Estimated", Data!F13, Data!B3="Actual",Data!C13) -> 0 | G11: =D11*(E11+F11) -> 0
B12: Online | E12: =_xlfn.IFS(D12=0,0,F8="","Select residency",AND(D12<>"", Data!B3="Actual"),VLOOKUP(B12,Data!B7:C15,2,FALSE), Data!B3="Estimated", VLOOKUP(B12,Data!B6:F15,5,FALSE)) -> 0 | G12: =D12*E12 -> 0
B13: =IF(F8=Data!B7, "COF Eligible", "COF applies to in-state students only") -> COF applies to in-state students only | E13: =_xlfn.IFS(F8<>Data!B7, 0,'Budget Worksheet'!D13<>"Yes", 0, AND(D13="Yes",Data!B3="Actual"), Data!C12*-1, AND(D13="Yes",Data!B3="Estimated"),Data!D12*-1) -> 0 | G13: =_xlfn.IFS(D13="",0,D13="No",0,D13="Yes",IF(F8="In-State",(D10+D11+D12)*E13,0)) -> 0
B14: =IF(F8=Data!B7, "What is COF? Visit www.coloradomesa.edu/cof to learn more.", "") ->  | E14: Tuition & Fees Total | G14: =SUM(G10:G13) -> 0
B15: Step 3: Enter your housing and meal plan information
B16: Housing & Food | E16: Rate Per Semester | F16: Activity Fee | G16: Total
B17: Dorm | E17: =_xlfn.IFS(C17="",0,Data!B3="Estimated", VLOOKUP(C17,Data!B21:H51,7,FALSE), Data!B3="Actual", VLOOKUP(C17,Data!B21:H51,3,FALSE)) -> 0 | F17: =_xlfn.IFS(C17="",0, C17="None", 0, AND(C17<>"",Data!B3="Actual"),Data!B56, AND(C17<>"",Data!B3="Estimated"),Data!E56) -> 0 | G17: =SUM(E17:F17) -> 0
B18: Meal Plan* | E18: =_xlfn.IFS(C18="",0,AND(C18<>"", Data!B3="Estimated"), VLOOKUP(C18,Data!B62:H69,7,FALSE),AND(C18<>"", Data!B3="Actual"), VLOOKUP(C18,Data!B62:H69,3,FALSE) ) -> 0 | G18: =E18 -> 0
B19: Learn more at www.coloradomesa.edu/residence-life | F19: Housing & Food Total | G19: =SUM(G17:G18) -> 0
B20: Step 4: Enter your information for other college expenses
B21: Description (e.g. books, transportation, rent, etc.) | G21: Total
B22: Do you have a past balance from a previous semester? | G22: 0
B23: Is this your first semester at CMU? | G23: =_xlfn.IFS(E23="", 0, AND(E23="Yes",Data!B3="Actual"),Data!C76, AND(E23="Yes",Data!B3="Estimated"),Data!F76, E23="No",0) -> 0
B24: *Are you planning to buy a parking pass? | G24: =_xlfn.IFS(E24="", 0,AND(E24<>"", Data!B3="Estimated"), VLOOKUP(E24,Data!B81:F87, 5,FALSE), AND(E24<>"", Data!B3="Actual"), VLOOKUP(E24,Data!B81:F87, 2,FALSE)) -> 0
B25: Type name of additional expenses here | G25: 0
B26: Type name of additional expenses here | G26: 0 | I26: Check out CMU's payment plan options in the ePay app in MAVzone!
B27: Total Other Expenses | G27: =SUM(G22:G26) -> 0 | I27: Payment Plan Type | L27: Payment Amounts | N27: Make an Optional Initial Payment
B28: Estimated Semester Expenses (includes estimated increases for 2026-2027) | G28: =SUM(G14,G19,G27) -> 0 | I28: Monthly | L28: =IF(Data!T50>0, _xlfn.IFS(Data!U50<Data!L49,ROUNDUP(Data!T50/Data!L50,2), Data!U50<Data!M49,ROUNDUP(Data!T50/Data!M50,2),Data!U50<Data!N49,ROUNDUP(Data!T50/Data!N50,2),Data!U50>=Data!N49, "Past Deadline"), "N/A") -> N/A
B29: How do I plan to pay? | I29: Semi-Monthly | L29: =IF(Data!T50>0,_xlfn.IFS(Data!U50<Data!L51,ROUNDUP(Data!T50/Data!L52,2), Data!U50<Data!M51,ROUNDUP(Data!T50/Data!M52,2),Data!U50<Data!N51,ROUNDUP(Data!T50/Data!N52,2), Data!U50<Data!O51, ROUNDUP(Data!T50/Data!O52,2),Data!U50<Data!P51,ROUNDUP(Data!T50/Data!P52,2), Data!U50>=Data!P51, "Past Deadline"), "N/A") -> N/A
B30: Step 5: Enter your financial aid information | I30: Weekly | L30: =IF(Data!T50>0,_xlfn.IFS(Data!U50<Data!L53,ROUNDUP(Data!T50/Data!L54,2), Data!U50<Data!M53,ROUNDUP(Data!T50/Data!M54,2),Data!U50<Data!N53,ROUNDUP(Data!T50/Data!N54,2), Data!U50<Data!O53, ROUNDUP(Data!T50/Data!O54,2),Data!U50< Data!P53, ROUNDUP(Data!T50/Data!P54,2), Data!U50<Data!Q53, ROUNDUP(Data!T50/Data!Q54,2), Data!U50<Data!R53,ROUNDUP(Data!T50/Data!R54,2), Data!U50<Data!S53,ROUNDUP(Data!T50/Data!S54,2), Data!U50<Data!T53,ROUNDUP(Data!T50/Data!T54,2), Data!U50>=Data!T53, "Past Deadline"), "N/A") -> N/A
B31: CMU Merit Scholarships & CMU Promise | F31: Yearly Amount | G31: Per Semester
B32: CMU Merit Scholarships | F32: =_xlfn.IFS(D32="",0,AND(D32=Data!K7, F8="In-State"), "Adjusts to tuition", AND(D32=Data!K7, F8<>"In-State"), "Must be in-state student", D32<>"", VLOOKUP(D32,Data!K6:L13,2,FALSE)) -> 0 | G32: =_xlfn.IFS(F32="",0, AND(D32=Data!K7, F8="In-State"),Data!L27, AND( D32=Data!K7, F8<>"In-State"), 0, F32<>"", 'Budget Worksheet'!F32/2) -> 0 | I32: What are my next steps?
B33: First Gen or Next Gen | F33: =_xlfn.IFS(D33="",0,D33<>"",VLOOKUP(D33,Data!K17:L21,2,FALSE)) -> 0 | G33: =F33/2 -> 0 | I33: Getting a refund? | L33: Sign up for eRefunds (direct deposit) in the ePay app in MAVzone to get your refund faster.
B34: CMU Promise Eligible? | F34: =_xlfn.IFS(D34="", 0, D34="No", 0, AND(D34="Yes", F8="In-State"), "Adjusts to tuition & aid", AND(D34="Yes", F8<>"In-State"), "Must be in-state") -> 0 | G34: =_xlfn.IFS(D34="", 0, D34="No", 0, AND(D34="Yes", F8<>"In-State"), 0, AND(D34="Yes", F8="In-State", Data!L26<Data!L27), Data!L27-Data!L26, AND(D34="Yes", F8="In-State", Data!L26>Data!L27), 0) -> 0
B35: =_xlfn.IFS(SUM(D10:D12)<12,"You must be registered for 12 credits to receive most scholarships!", SUM(D10:D12)>=12, "Learn more at www.coloradomesa.edu/financial-aid/scholarships") -> You must be registered for 12 credits to receive most scholarships! | G35: =SUM(G32:G34) -> 0 | I35: Will you have a balance? | L35: Check out the ePay app in MAVzone to make payments and/or sign up for a payment plan.
B36: Grants | F36: Yearly Amount | G36: Per Semester
B37: Pell Grant | F37: 0 | G37: =_xlfn.IFS(F37=0,0,AND(F37<>0,SUM(D10:D12)>=12),F37/2,AND(F37<>0,SUM(D10:D12)<12),(F37*((SUM(D10:D12))/12)/2)) -> 0 | I37: Set up Authorized Users in ePay | L37: Authorized Users will receive their own ePay account where they can view your ePay activity, access billing statements, and make payments to your account.
B38: Colorado State Grant (CSG) or Supplemental Educ. Opportunity Grant (SEOG) | F38: 0 | G38: =IF(SUM(D10:D12)<12,0,IF(F38=0,0,F38/2)) -> 0
B39: Type name of additional grants here | F39: 0 | G39: =IF(F39=0,0,F39/2) -> 0 | I39: When are bills due? | L39: Bills are due September 15 for fall semesters and February 15 for spring semesters.
B40: =_xlfn.IFS(SUM(D10:D12)<12,"You must be registered for 12 credits to receive CSG, SEOG, and most grants!", SUM(D10:D12)>=12, "") -> You must be registered for 12 credits to receive CSG, SEOG, and most grants! | F40: Grants Total | G40: =SUM(G37:G39) -> 0
B41: Other Scholarships & Contributions | D41: Fund Type | F41: Yearly Amount | G41: Per Semester | I41: How will a balance affect registration? | L41: Currently enrolled students must have their balance paid below $1000 to register for the next semester. Students who are not currently enrolled must have their balance paid in full in order to register.
B42: Type name of other funding here | F42: 0 | G42: =_xlfn.IFS(F42=0,0, AND(F42<>0, D42=""), "Select Fund Type", AND(F42<>0, D42<>""),F42/2) -> 0
B43: Type name of other funding here | F43: 0 | G43: =_xlfn.IFS(F43=0,0, AND(F43<>0, D43=""), "Select Fund Type", AND(F43<>0, D43<>""),F43/2) -> 0
B44: Type name of other funding here | F44: 0 | G44: =_xlfn.IFS(F44=0,0, AND(F44<>0, D44=""), "Select Fund Type", AND(F44<>0, D44<>""),F44/2) -> 0 | I44: Still have questions? askIRIS! | L44: Stop by IRIS, call 970-248-1177, or email iris@coloradomesa.edu. Schedule a financial advising appointment with an IRIS Advisor at www.coloradomesa.edu/iris.
B45: Type name of other funding here | F45: 0 | G45: =_xlfn.IFS(F45=0,0, AND(F45<>0, D45=""), "Select Fund Type", AND(F45<>0, D45<>""),F45/2) -> 0
B46: Other/Family Contributions Total | G46: =SUM(G42:G45) -> 0
B47: Federal Loans | E47: Offered for Year | F47: =IF(F4=Data!K58, "Fall 2026 Amount Paid", "N/A") -> N/A | G47: =_xlfn.IFS(F4="", "Select Semester", F4=Data!K57, "Fall Amount",F4=Data!K58, "Spring Amount") -> Select Semester
B48: Subsidized Loan | E48: 0 | G48: =_xlfn.IFS(E48=0,0,SelectTerm="","Select Term",AND(SelectTerm=SpringTerm,'Budget Worksheet'!$F$5=""),"Enter Fall Credits",SelectTerm=FallTerm,ROUND(_xlfn.IFS(E48=0,0,SUM($D$10:$D$12)<6,0,AND(E48<>0,SUM($D$10:$D$12)>=6),FallSub-(FallSub*Data!$L$43)),0.1), AND(E48<>0,SUM($D$10:$D$12)>=6,SelectTerm=SpringTerm, F48=""),"Enter Fall Paid", AND(E48<>0,SUM($D$10:$D$12)>=6,SelectTerm=SpringTerm), ROUND(SpringAdjSub-(SpringAdjSub*Data!$L$43), 0.1)) -> 0
B49: Unsubsidized Loan | E49: 0 | G49: =_xlfn.IFS(E49=0, 0, SelectTerm="","Select Term",AND(SelectTerm=SpringTerm,'Budget Worksheet'!$F$5=""),"Enter Fall Credits",SelectTerm=FallTerm,ROUND(_xlfn.IFS(E49=0,0,SUM($D$10:$D$12)<6,0,AND(E49<>0,SUM($D$10:$D$12)>=6),FallUnsub-(FallUnsub*Data!$L$43)),0.1), AND(E49<>0,SUM($D$10:$D$12)>=6,SelectTerm=SpringTerm, F49=""),"Enter Fall Paid", AND(E49<>0,SUM($D$10:$D$12)>=6,SelectTerm=SpringTerm), ROUND(SpringAdjUnsub-(SpringAdjUnsub*Data!$L$43), 0.1)) -> 0
B50: Parent PLUS Loan | E50: 0 | G50: =_xlfn.IFS(E50=0,0,SUM($D$10:$D$12)<6, 0, AND(E50<>0, SUM($D$10:$D$12)>=6), (E50-(E50*(Data!L44/100)))/2) -> 0
B51: =_xlfn.IFNA(_xlfn.IFS(SUM(D10:D12)<6, "You must be registered for at least 6 credit hours to be eligible for federal loans!",E50>0, "Students who qualify for Legacy Eligibility may qualify for additional Parent Plus loan.", SUM(D10:D12>=6), "Learn how to view & accept loans at www.coloradomesa.edu/iris"), "") -> You must be registered for at least 6 credit hours to be eligible for federal loans! | F51: Loans Total | G51: =SUM(G48:G50) -> 0
B52: Estimated Financial Aid | G52: =SUM(G35,G51,G40,G46) -> 0
B53: How much will I owe after financial aid has paid?
B54: =IF(G54<=0, "Estimated refund", "Estimated amount I will still owe after financial aid has paid") -> Estimated refund | G54: =G28-G52 -> 0

Sheet Data (hidden)
B2: Select Actual/Estimated
B3: Estimated
B5: Tuition & Fees | K5: Merit Scholarships
B6: Selection | C6: 2627 Rates | D6: 2526 Rates | E6: Estimated % Increase | F6: Estimated New Rates | G6: Notes | K6: Scholarship Name | L6: Amount | M6: Notes
B7: In-State | C7: 452.9 | D7: 452.9 | E7: 1 | F7: =D7*E7 -> 452.9 | G7: Copied actual into estimated with no increase | K7: Distinguished Scholar | L7: N/A | M7: Reflects updated 2024-2025 scholarships
B8: Out-of-State | C8: 931.7 | D8: 931.7 | E8: 1 | F8: =D8*E8 -> 931.7 | K8: Trustee | L8: 7500 | M8: Reflects updated 2024-2025 scholarships
B9: Western Undergratuate Exchange (WUE) | C9: 533.6 | D9: 533.6 | E9: 1 | F9: 533.6 | K9: Presidential | L9: 5000 | M9: Reflects updated 2024-2025 scholarships
B10: Mountains and Plains (M&P) | C10: 533.6 | D10: 533.6 | E10: 1 | F10: 533.6 | K10: Academic Achievement | L10: 3000 | M10: Reflects updated 2024-2025 scholarships
B11: Online | C11: 483.7 | D11: 483.7 | E11: 1 | F11: 483.7 | K11: Two Rivers | L11: 2000 | M11: Reflects updated 2024-2025 scholarships
B12: COF | C12: 116 | D12: 116 | E12: N/A | F12: N/A | K12: Phi Theta Kappa | L12: 1000 | M12: Reflects updated 2024-2025 scholarships
B13: Student Fees Per Credit Hour | C13: 45.8 | D13: 45.8 | E13: 1 | F13: 45.8 | K13: None | L13: 0 | M13: N/A
B14: Career & Technical Education (CTE) | C14: 298.7 | D14: 298.7 | E14: 1 | F14: 298.7
B15: CTE-Health Sciences | C15: 384.6 | D15: 384.6 | E15: 1 | F15: 384.6
K16: Other Scholarships
K17: Scholarship Name | L17: Amount | M17: Notes
B18: Residence Hall Rates | K18: First Gen | L18: 1000 | M18: Did not change from 23-24 amounts
B19: Dorm Selection | C19: 2627 Rates | E19: 2526 Rates | G19: Estimated % Increase | H19: Estimated New Rates | I19: Notes | K19: Next Gen | L19: 1000 | M19: Did not change from 23-24 amounts
C20: Room Cost per Year | D20: Room Cost per Semester | E20: Room Cost per Year | F20: Room Cost per Semester | K20: Both | L20: =SUM(L18:L19) -> 2000 | M20: Did not change from 23-24 amounts
B21: None | C21: 0 | D21: =C21/2 -> 0 | E21: 0 | F21: =E21/2 -> 0 | G21: 1 | H21: =F21*G21 -> 0 | I21: N/A | K21: None | L21: 0 | M21: N/A
B22: Albers - Double | C22: 4720 | D22: =C22/2 -> 2360 | E22: 4720 | F22: 2360 | G22: 1 | H22: =F22*G22 -> 2360 | I22: Copied actual into estimated with no increase
B23: Albers - Single | C23: 7030 | D23: 3515 | E23: 7030 | F23: 3515 | G23: 1 | H23: 3515
B24: Aspen Apartments | C24: 10220 | D24: =C24/2 -> 5110 | E24: 10220 | F24: 5110 | G24: 1 | H24: 5110 | K24: CMU Promise & Distinguished Scholarship Calculations
B25: Bunting Hall - Double | C25: 8130 | D25: =C25/2 -> 4065 | E25: 8130 | F25: 4065 | G25: 1 | H25: 4065 | K25: Sums | L25: Amounts | M25: Notes
B26: Bunting Hall - Double Stacked | C26: 7480 | D26: =C26/2 -> 3740 | E26: 7480 | F26: 3740 | G26: 1 | H26: 3740 | K26: Scholarship & Grants | L26: =SUM('Budget Worksheet'!G32:G33,'Budget Worksheet'!G40,SUMIF('Budget Worksheet'!D42:E45,"Athletic Scholarship",'Budget Worksheet'!G42:G45)) -> 0 | M26: Sums merit scholarships, all grants, and athletic scholarships
B27: Bunting Hall - Single | C27: 10100 | D27: 5050 | E27: 10100 | F27: 5050 | G27: 1 | H27: 5050 | K27: Tuition - COF | L27: =(SUM('Budget Worksheet'!D10*'Budget Worksheet'!E10,'Budget Worksheet'!D12*'Budget Worksheet'!E12,'Budget Worksheet'!D11*'Budget Worksheet'!E11)-(SUM('Budget Worksheet'!D10:D12)*Data!D12)) -> 0 | M27: Amounts are from input on Budget Worksheet tab and adjust automatically
B28: Centential Village Apartment | C28: 12880 | D28: =C28/2 -> 6440 | E28: 12880 | F28: 6440 | G28: 1 | H28: 6440
B29: Garfield Hall - Double | C29: 6420 | D29: 3210 | E29: 6420 | F29: 3210 | G29: 1 | H29: 3210
B30: Grand Mesa Hall - Single | C30: 10310 | D30: 5155 | E30: 10310 | F30: 5155 | G30: 1 | H30: 5155 | K30: Other Scholarships & Contributions
B31: Grand Mesa Hall - Super Single | C31: 10870 | D31: 5435 | E31: 10870 | F31: 5435 | G31: 1 | H31: 5435 | K31: Additional Funding Type | L31: Count Against CMU Promise? | M31: Notes
B32: Grand Mesa Hall - Double | C32: 8340 | D32: 4170 | E32: 8340 | F32: 4170 | G32: 1 | H32: 4170 | K32: CMU Foundation Scholarship | L32: No
B33: Lucero Hall - Double | C33: 8340 | D33: 4170 | E33: 8340 | F33: 4170 | G33: 1 | H33: 4170 | K33: Athletic Scholarship | L33: Yes
B34: Lucero Hall - Single | C34: 10310 | D34: 5155 | E34: 10310 | F34: 5155 | G34: 1 | H34: 5155 | K34: Outside Scholarship | L34: No
B35: Lucero Hall Apartment - Double | C35: 8760 | D35: 4380 | E35: 8760 | F35: 4380 | G35: 1 | H35: 4380 | K35: 529 Payment | L35: No
B36: Lucero Hall Apartment - Single | C36: 11120 | D36: 5560 | E36: 11120 | F36: 5560 | G36: 1 | H36: 5560 | K36: Personal/Family Contribution | L36: No
B37: Monument Hall - Double | C37: 7690 | D37: 3845 | E37: 7690 | F37: 3845 | G37: 1 | H37: 3845 | K37: Alternative Loan | L37: No
B38: Orchard Ave Apartments - Double | C38: 8760 | D38: 4380 | E38: 8760 | F38: 4380 | G38: 1 | H38: 4380 | K38: Other | L38: No
B39: Orchard Ave Apartments - Single | C39: 11120 | D39: 5560 | E39: 11120 | F39: 5560 | G39: 1 | H39: 5560
B40: Pinon Hall - Double | C40: 6420 | D40: 3210 | E40: 6420 | F40: 3210 | G40: 1 | H40: 3210
B41: Pinon Hall - Single | C41: 8110 | D41: 4055 | E41: 8110 | F41: 4055 | G41: 1 | H41: 4055 | K41: Origination/Loan Fees
B42: Rait Hall - Double | C42: 4720 | D42: 2360 | E42: 4720 | F42: 2360 | G42: 1 | H42: 2360 | K42: Loan Type | L42: Fee Amount | M42: Notes
B43: Rait Hall - Single | C43: 7030 | D43: 3515 | E43: 7030 | F43: 3515 | G43: 1 | H43: 3515 | K43: Subsidized & Unsubsidized | L43: 0.01057 | M43: Reviewed 5/14/26 - no changes
B44: Tolman Hall - Double | C44: 4720 | D44: 2360 | E44: 4720 | F44: 2360 | G44: 1 | H44: 2360 | K44: Parent PLUS | L44: 0.04228 | M44: Reviewed 5/14/26 - no changes
B45: Tolman Hall - Single | C45: 7030 | D45: 3515 | E45: 7030 | F45: 3515 | G45: 1 | H45: 3515
B46: Townhouse Apartments - Double | C46: 7030 | D46: 3515 | E46: 7030 | F46: 3515 | G46: 1 | H46: 3515
B47: Townhouse Apartments - Single | C47: 8500 | D47: 4250 | E47: 8500 | F47: 4250 | G47: 1 | H47: 4250 | K47: Payment Plans
B48: Walnut Ridge Apartments - Double | C48: 7030 | D48: 3515 | E48: 7030 | F48: 3515 | G48: 1 | H48: 3515 | K48: Payment Plan Type | L48: Dates
B49: Walnut Ridge Apartments - Single | C49: 8500 | D49: 4250 | E49: 8500 | F49: 4250 | G49: 1 | H49: 4250 | K49: Monthly | L49: 2026-08-16 | M49: 2026-09-16 | N49: 2026-10-16 | O49: 2026-10-17 | T49: Payment Plan Amount | U49: Today's Date
B50: Wingate Hall - Apartment Single | C50: 10220 | D50: 5110 | E50: 10220 | F50: 5110 | G50: 1 | H50: 5110 | K50: # of Pymts-Monthly | L50: 5 | M50: 4 | N50: 3 | O50: Deadline Past | T50: ='Budget Worksheet'!G54-'Budget Worksheet'!N28 -> 0 | U50: =TODAY() -> 2026-06-05
B51: Wingate Hall - Double | C51: 7030 | D51: 3515 | E51: 7030 | F51: 3515 | G51: 1 | H51: 3515 | K51: Semi-Monthly | L51: 2026-08-16 | M51: 2026-09-02 | N51: 2026-09-16 | O51: 2026-10-02 | P51: 2026-10-16 | Q51: 2026-10-17
K52: # of Pymts-BiMonthly | L52: 10 | M52: 9 | N52: 8 | O52: 7 | P52: 6 | Q52: Deadline Past
K53: Weekly | L53: 2026-08-14 | M53: =L53+7 -> 2026-08-21 | N53: =M53+7 -> 2026-08-28 | O53: 2026-09-04 | P53: 2026-09-11 | Q53: 2026-09-18 | R53: 2026-09-25 | S53: 2026-10-02 | T53: 2026-10-09 | U53: 2026-10-17
B54: Res Hall Activity Fee | K54: # of Pymts-Weekly | L54: 19 | M54: 18 | N54: 17 | O54: 16 | P54: 15 | Q54: 14 | R54: 13 | S54: 12 | T54: 11 | U54: Deadline Past
B55: 2627 Rate | C55: 2526 Rate | D55: Estimated% Increase | E55: Estimated New Rate | F55: Notes
B56: 30 | C56: 30 | D56: 1 | E56: =C56*D56 -> 30 | K56: Semester Options
K57: Fall 2026
K58: Spring 2027
B59: Res Hall Meal Plans
B60: Name | C60: 2627 Rates | E60: 2526 Rates | G60: Estimated % Increase | H60: Estimated New Rate | I60: Notes
C61: Cost per Year | D61: Cost per Semester | E61: Cost per Year | F61: Cost per Semester | K61: Summary Chart Data
B62: The Unlimited | C62: 6620 | D62: =C62/2 -> 3310 | E62: 6620 | F62: =E62/2 -> 3310 | G62: 1 | H62: =F62*G62 -> 3310 | I62: Copied actal into estimated with no increase | K62: Category | L62: Tuition & Fees | M62: Housing & Food | N62: Other Expenses | O62: Anticipated Refund | P62: CMU Promise & Merit Scholarships | Q62: Grants | R62: Loans | S62: Other Aid | T62: Make a Plan to Pay
B63: Mav 15 | C63: 6670 | D63: =C63/2 -> 3335 | E63: 6670 | F63: =E63/2 -> 3335 | G63: 1 | H63: =F63*G63 -> 3335 | K63: Estimated Costs | L63: =IF('Budget Worksheet'!G14>0,'Budget Worksheet'!G14,NA()) ->  | M63: =IF('Budget Worksheet'!G19>0,'Budget Worksheet'!G19, NA()) ->  | N63: =IF('Budget Worksheet'!G27,'Budget Worksheet'!G27,NA()) ->  | O63: =IF('Budget Worksheet'!G54<0,'Budget Worksheet'!G54*-1,NA()) ->  | P63: =IF('Budget Worksheet'!G34>0,'Budget Worksheet'!G34, NA()) ->  | Q63: =NA() ->  | R63: =NA() ->  | S63: =NA() ->  | T63: =NA() -> 
B64: Base 15 | C64: 5990 | D64: 2995 | E64: 5990 | F64: =E64/2 -> 2995 | G64: 1 | H64: 2995 | K64: Estimated Aid | L64: =NA() ->  | M64: =NA() ->  | N64: =NA() ->  | O64: =NA() ->  | P64: =IF('Budget Worksheet'!G35>0,'Budget Worksheet'!G35, NA()) ->  | Q64: =IF('Budget Worksheet'!G40>0,'Budget Worksheet'!G40,NA()) ->  | R64: =IF('Budget Worksheet'!G51>0,'Budget Worksheet'!G51,NA()) ->  | S64: =IF('Budget Worksheet'!G46>0,'Budget Worksheet'!G46,NA()) ->  | T64: =IF('Budget Worksheet'!G54>0,'Budget Worksheet'!G54,NA()) -> 
B65: Wingate/Aspen Apartment | C65: 3290 | D65: 1645 | E65: 3290 | F65: =E65/2 -> 1645 | G65: 1 | H65: 1645
B66: MAV 20 | D66: 0 | E66: 318 | F66: 159 | G66: 1.051 | H66: 167.109 | I66: Added 6/11/24
B67: MAV 40 | D67: 0 | E67: 585 | F67: 292.5 | G67: 1.051 | H67: 307.4175 | I67: Added 6/11/24
B68: MAV 80 | D68: 0 | E68: 1120 | F68: 560 | G68: 1.051 | H68: =F68*G68 -> 588.56 | I68: Added 6/11/24
B69: None | C69: 0 | D69: 0 | E69: 0 | F69: 0 | G69: 1 | H69: =F69*G69 -> 0 | I69: N/A
B72: First-Time Student Fees
B73: Fee Name | C73: 2627 Amount | D73: 2526 Amount | E73: Estimated % Increase | F73: Estimated New Rate | G73: Notes
B74: Matriculation Fee | D74: 140 | E74: 1 | F74: =D74*E74 -> 140 | G74: Did not add an estimated increase
B75: New Mav Days | D75: 90 | E75: 1 | F75: =D75*E75 -> 90 | G75: Did not add an estimated increase
B76: Total | C76: =SUM(C74:C75) -> 0 | D76: =SUM(D74:D75) -> 230 | E76: N/A | F76: =SUM(F74:F75) -> 230
B79: Parking Permits
B80: Parking Permits | C80: 2627 Amount | D80: 2526 Amount | E80: Estimated % Increase | F80: Estimated New Rate | G80: Notes
B81: None | C81: 0 | D81: 0 | E81: 1 | F81: =D81*E81 -> 0 | G81: N/A
B82: Residence Hall Permit | D82: 186 | E82: 1.03 | F82: =D82*E82 -> 191.58
B83: Residence Reserved Hall Permit | D83: 275 | E83: 1.03 | F83: =D83*E83 -> 283.25
B84: Commuter Permit | D84: 154 | E84: 1.03 | F84: 158.62
B85: Faculty/Staff Permit | D85: 154 | E85: 1.03 | F85: 158.62
B86: Value Permit | D86: 70 | E86: 1.03 | F86: 72.1
B87: Motorcycle Permit | D87: 38 | E87: 1.03 | F87: 39.14
B90: Early Start Program
B91: Resident | C91: 425 | D91: From Early Start website; updated 4/4/25
B92: Commuter | C92: 365 | D92: Added 4/4/25

Sheet Loan Proration (hidden)
B2: Offered | C2: Semester Half | D2: Fall Actual Paid | E2: Fall Earned Aid | F2: Overpaid | G2: Spring Adjusted
A3: Subsidized | B3: ='Budget Worksheet'!E48 -> 0 | C3: =SubOffered/2 -> 0 | D3: ='Budget Worksheet'!F48 -> 0 | E3: =FallSub -> 0 | F3: =IF((FallPaidSub-E3)<=0, 0, (FallPaidSub-E3)) -> 0 | G3: =G8-F3 -> 0
A4: Unsubsidized | B4: ='Budget Worksheet'!E49 -> 0 | C4: =UnsubOffered/2 -> 0 | D4: ='Budget Worksheet'!F49 -> 0 | E4: =FallUnsub -> 0 | F4: =IF((FallPaidUnsub-E4)<=0, 0, (FallPaidUnsub-E4)) -> 0 | G4: =H8-F4 -> 0
J5: Annual Amounts (If Spring Semester is Selected)
A6: Full Time Credit Hours | B6: 24 | C6: % Semester Credits | D6: % Annual Credits (Running Total) | E6: Use This % | F6: Eligible | G6: Sub | H6: Unsub | J6: Total Credit Hours | K6: =SUM(B7:B8) -> 0
A7: Fall Semester Credit Hours | B7: =_xlfn.IFS('Budget Worksheet'!F4=Data!K57,SUM('Budget Worksheet'!D10:D12), 'Budget Worksheet'!F4=Data!K58, 'Budget Worksheet'!F5, 'Budget Worksheet'!F4="", 0) -> 0 | C7: =FallCreditHrs/(FTCreditHrs/2) -> 0 | D7: =MIN((FallCreditHrs/(FTCreditHrs/2)),1) -> 0 | E7: =IF(FallCredPercent>=1, 1, FallCredPercent) -> 0 | F7: =IF(B7<6,"NO","YES") -> NO | G7: =_xlfn.IFS(FallEligible="NO",0,FallCredPercent>=100%,(SubOffered/2),FallCredPercent<100%,(UsePercentFall*(SubOffered/2))) -> 0 | H7: =_xlfn.IFS(FallEligible="NO",0,FallCredPercent>=100%,(UnsubOffered/2),FallCredPercent<100%,(UsePercentFall*(UnsubOffered/2))) -> 0 | J7: % for Year | K7: =_xlfn.IFS('Budget Worksheet'!F4=Data!K57,"N/A", AND('Budget Worksheet'!F4=Data!K58,SUM('Loan Proration'!B7:B8)>='Loan Proration'!B6), 1, AND('Budget Worksheet'!F4=Data!K58,SUM('Loan Proration'!B7:B8)<'Loan Proration'!B6), SUM('Loan Proration'!B7:B8)/'Loan Proration'!B6) -> 
A8: Spring Semester Credit Hours | B8: =_xlfn.IFS('Budget Worksheet'!F4=Data!K57, 0,'Budget Worksheet'!F4=Data!K58, SUM('Budget Worksheet'!D10:D12), 'Budget Worksheet'!F4="",0) -> 0 | C8: =SpringCreditHrs/(FTCreditHrs/2) -> 0 | D8: =MIN(B9/FTCreditHrs,1) -> 0 | E8: =_xlfn.IFS(AND(FallCredPercent<=1, SpringCredPercent<1), SpringCredPercent, AND(FallCredPercent>=1, SpringCredPercent>=1), 1, AND(FallCredPercent>1, SpringCredPercent<1, (FallCredPercent+SpringCredPercent)>2), 1, AND(FallCredPercent>1, SpringCredPercent<1, (FallCredPercent+SpringCredPercent)<=2), ((FallCredPercent-1)+SpringCredPercent), AND(FallCredPercent<1, SpringCredPercent>=1, (FallCredPercent+SpringCredPercent)>2), (2-FallCredPercent), AND(FallCredPercent<1, SpringCredPercent>=1, (FallCredPercent+SpringCredPercent)<=2), SpringCredPercent) -> 0 | F8: =IF(B8<6,"NO","YES") -> NO | G8: =IF(SpringEligible="No",0,(SubOffered/2)*UsePercentSpring) -> 0 | H8: =IF(SpringEligible="No",0,(UnsubOffered/2)*UsePercentSpring) -> 0 | J8: Annual Subsidized | K8: =SubOffered*K7 -> 
A9: Annual Amounts | B9: =SUM(B7:B8) -> 0 | F9: N/A | G9: =SUM(G7:G8) -> 0 | H9: =SUM(H7:H8) -> 0 | J9: Annual Unsubsidized | K9: =UnsubOffered*K7 -> 

Sheet Change Log (hidden)
A1: Date | B1: Name | C1: Note
A2: 2025-08-07 | B2: Justin Little | C2: Update for actual 2526 rates
A3: 2026-05-07 | B3: Brenna Wilkerson | C3: Update for 2627 estimated rates; added summary page and pop-up message
A4: 2026-05-14 | B4: Brenna Wilkerson | C4: Removed Bunting Super Single option
A5: 2026-05-14 | B5: Brenna Wilkerson | C5: Reworked estimated rates - Added column for estimated increases, drop down for actual/estimated, and adjusted formulas to go off actual or estimated
A6: 2026-05-15 | B6: Brenna Wilkerson | C6: Added Loan Proration tab and calculated loan amounts for spring
A7: 2026-05-18 | B7: Brenna Wilkerson | C7: Fixed formulas for loan payment amounts to remove N/A; unlocked Fall Credits and Fall Paid cells; added text about Legacy Eligibility if Parent PLUS >0.
A8: 2026-05-20 | B8: Justin Little | C8: Inserted new 2627 tuition and fees rates; inserted new residence halls and new 2627 rates; inserted new meal plan names and rates (need commuter prices still)
A9: 2026-05-29 | B9: Brenna Wilkerson | C9: Unlocked Name cell, added if sub/unsub loans are 0 to insert 0 (to fix N/A error), updated estimated rates for tuition, dorms, res hall meal plans
